bitfinex-derivatives/quotes_BTCF0:USTF0_20210703
["timestamp","ask_amount","ask_price","bid_price","bid_amount"]
[1625278919370,5.67994874,33542.0,33540.0,0.00696581]
[1625278919571,5.25969644,33541.0,33540.0,0.00696581]
[1625278919672,5.31669644,33541.0,33540.0,0.00696581]
[1625278924285,5.25969644,33541.0,33540.0,0.00696581]
[1625278924386,3.68182257,33541.0,33540.0,0.00696581]
[1625278924736,3.68182257,33541.0,33540.0,0.24449581]
[1625278924990,3.68182257,33541.0,33540.0,1.47638663]
[1625278926092,2.27924854,33541.0,33540.0,2.53225274]
[1625278926495,2.27924854,33541.0,33540.0,2.77282818]
[1625278926896,2.27924854,33541.0,33540.0,4.00466338]
[1625278927696,2.27924854,33541.0,33540.0,2.77282818]
[1625278928152,2.27924854,33541.0,33540.0,2.83182818]
[1625278928247,2.27924854,33541.0,33540.0,2.89082818]
[1625278928799,1.29113867,33542.0,33540.0,5.53035047]
[1625278928948,1.05056323,33542.0,33540.0,5.53035047]
[1625278929249,1.05056323,33542.0,33541.0,0.02154936]
[1625278929350,1.05056323,33542.0,33541.0,0.08054936]
[1625278929450,1.05056323,33542.0,33541.0,0.13954936]
[1625278929554,2.27701701,33543.0,33541.0,3.30687448]
[1625278929650,1.05138908,33543.0,33541.0,5.06649954]
[1625278930052,1.05138908,33543.0,33542.0,0.0069595]
[1625278930152,1.05201363,33544.0,33542.0,5.05160662]
[1625278930251,1.05201363,33544.0,33542.0,5.06619481]
[1625278930551,1.05201363,33544.0,33543.0,0.26213324]
[1625278930651,1.05201363,33544.0,33543.0,0.38013324]
[1625278930752,0.24057544,33545.0,33543.0,5.30658855]
[1625278931052,0.24057544,33545.0,33544.0,0.00696076]
[1625278931156,0.24057544,33545.0,33544.0,10.02046172]
[1625278931256,0.24057544,33545.0,33544.0,10.13846172]
[1625278931602,0.24057544,33545.0,33544.0,10.15305796]
[1625278931702,0.24057544,33545.0,33544.0,5.06605796]
[1625278932356,0.24057544,33545.0,33544.0,5.05146172]
[1625278933356,0.24057544,33545.0,33544.0,5.06605773]
[1625278934607,0.24057544,33545.0,33544.0,9.61845773]
[1625278935106,0.24057544,33545.0,33544.0,5.06605773]
[1625278935758,0.24057544,33545.0,33544.0,5.05146172]
[1625278935959,0.24057544,33545.0,33544.0,5.06605748]
[1625278937561,0.24057544,33545.0,33544.0,5.05146172]
[1625278938311,0.24057544,33545.0,33544.0,6.63455365]
[1625278938411,1.05326185,33549.0,33544.0,6.63455365]
[1625278938613,1.05326185,33549.0,33548.0,0.24057544]
[1625278938716,1.05326185,33549.0,33548.0,0.62390544]
[1625278938865,1.05326185,33549.0,33548.0,0.63086547]
[1625278939268,1.05326185,33549.0,33548.0,4.14866556]
[1625278941419,1.05245612,33550.0,33548.0,4.14866556]
[1625278941773,1.05245612,33550.0,33549.0,3.51718166]
[1625278941870,1.05245612,33550.0,33549.0,3.52414151]
[1625278941971,1.05245612,33550.0,33549.0,3.64214151]
[1625278942072,0.51922509,33552.0,33549.0,3.64214151]
[1625278942373,0.51922509,33552.0,33550.0,0.00695967]
[1625278942473,0.51922509,33552.0,33550.0,0.06595967]
[1625278942571,1.40451974,33556.0,33551.0,2.87828648]
[1625278942671,1.40451974,33556.0,33551.0,2.99628648]
[1625278942970,1.40451974,33556.0,33552.0,0.00695965]
[1625278943071,1.40451974,33556.0,33552.0,0.06595965]
[1625278943172,1.40451974,33556.0,33552.0,0.12495965]
[1625278943271,1.40420226,33557.0,33553.0,1.23052367]
[1625278943471,1.40420226,33557.0,33553.0,1.35548322]
[1625278944625,1.40420226,33557.0,33553.0,1.59605866]
[1625278945175,1.64532446,33558.0,33553.0,1.59605866]
[1625278946737,0.24057544,33558.0,33553.0,0.36553499]
[1625278947189,1.64627519,33558.0,33553.0,1.59381524]
[1625278948690,1.70327519,33558.0,33553.0,1.59381524]
[1625278948841,0.29757544,33558.0,33553.0,1.59381524]
[1625278949191,1.40531028,33557.0,33553.0,1.59381524]
[1625278950245,1.40536869,33556.0,33553.0,0.89194081]
[1625278950694,1.40536869,33556.0,33553.0,0.89227648]
[1625278951498,1.40514649,33557.0,33553.0,1.58984059]
[1625278952099,1.6456816,33558.0,33553.0,1.58984059]
[1625278952800,0.24057544,33558.0,33553.0,1.58984059]
[1625278953551,0.29757544,33554.0,33553.0,1.58984059]
[1625278954455,0.29757544,33554.0,33553.0,0.89023739]
[1625278954959,0.29757544,33554.0,33553.0,0.89001197]
[1625278956360,0.29757544,33554.0,33553.0,0.62774455]
[1625278956859,0.29757544,33554.0,33553.0,0.45291889]
[1625278957360,0.29757544,33554.0,33553.0,0.6277404]
[1625278957512,0.24057544,33554.0,33553.0,0.6277404]
[1625278957860,0.29757544,33554.0,33553.0,0.6277404]
[1625278958162,0.24057544,33554.0,33553.0,0.6277404]
[1625278960468,0.24057544,33554.0,33553.0,0.64233848]
[1625278960567,0.24057544,33554.0,33553.0,1.60256012]
[1625278961268,0.24057544,33558.0,33553.0,1.60256012]
[1625278961571,0.24057544,33558.0,33554.0,0.02155699]
[1625278961669,0.24057544,33558.0,33557.0,0.52319309]
[1625278961869,1.40397582,33562.0,33557.0,0.64119309]
[1625278962069,1.40394801,33563.0,33559.0,0.61016401]
[1625278962268,1.40394801,33563.0,33559.0,0.72816401]
[1625278962368,1.40394801,33563.0,33560.0,0.00695985]
[1625278962468,1.40394801,33563.0,33560.0,0.06595985]
[1625278962570,1.22845068,33562.0,33560.0,0.21211701]
[1625278962668,1.22845068,33562.0,33560.0,0.69326789]
[1625278963018,1.22829443,33563.0,33560.0,0.86741275]
[1625278963369,1.22829443,33563.0,33560.0,0.88200654]
[1625278963670,0.45118048,33565.0,33560.0,0.88200654]
[1625278963671,1.67901129,33565.0,33560.0,1.14256267]
[1625278964369,1.67901129,33565.0,33560.0,1.14233868]
[1625278964469,1.67901129,33565.0,33560.0,1.12774489]
[1625278965023,0.057,33564.0,33560.0,1.12774489]
[1625278965376,0.057,33564.0,33560.0,1.21471874]
[1625278965624,1.67901129,33565.0,33560.0,1.21471874]
[1625278966074,0.057,33564.0,33560.0,1.21471874]
[1625278966275,1.43843585,33565.0,33560.0,1.21471874]
[1625278966575,1.43843585,33565.0,33561.0,0.00696338]
[1625278966676,1.43843585,33565.0,33561.0,0.65143167]
[1625278966776,1.43843585,33565.0,33564.0,0.24057544]
[1625278966878,1.43843585,33565.0,33564.0,5.63757544]
[1625278967077,1.43843585,33565.0,33564.0,5.64453878]
[1625278967477,0.21060504,33565.0,33564.0,5.64453878]
[1625278968484,0.21060504,33565.0,33564.0,0.36553878]
[1625278969681,0.26760504,33565.0,33564.0,0.36553878]
[1625278970782,0.50818048,33565.0,33564.0,0.36553878]
[1625278972135,0.50818048,33565.0,33564.0,0.24753878]
[1625278972136,0.72943048,33565.0,33564.0,0.24753878]
[1625278972237,0.78843048,33565.0,33564.0,0.24753878]
[1625278972637,0.72943048,33565.0,33564.0,0.24753878]
[1625278973091,2.13113499,33565.0,33564.0,0.24753878]
[1625278973540,3.70820413,33565.0,33564.0,0.24753878]
[1625278973740,2.13113499,33565.0,33564.0,0.24753878]
[1625278973941,1.92052995,33565.0,33564.0,0.24753878]
[1625278974840,1.97952995,33565.0,33564.0,0.24753878]
[1625278976592,1.92052995,33565.0,33564.0,0.24753878]
[1625278977295,3.49868069,33565.0,33564.0,0.24753878]
[1625278978149,1.92052995,33565.0,33564.0,0.24753878]
[1625278978450,1.97952995,33565.0,33564.0,0.24753878]
[1625278978550,3.55846858,33565.0,33564.0,0.24753878]
[1625278979053,7.47796858,33565.0,33564.0,0.24753878]
[1625278980152,7.53696858,33565.0,33564.0,0.24753878]
[1625278981754,8.76600598,33565.0,33564.0,0.24753878]
[1625278984354,4.84650598,33565.0,33564.0,0.24753878]
[1625278984707,4.84650598,33565.0,33564.0,0.00696334]
[1625278984805,5.08708142,33565.0,33564.0,0.00696334]
[1625278985359,6.84444263,33565.0,33557.0,0.00696325]
[1625278985561,6.84444263,33565.0,33564.0,0.00696332]
[1625278985809,0.87740088,33565.0,33564.0,0.00696332]
[1625278985959,0.87740088,33565.0,33556.0,0.00696256]
[1625278986059,5.1428,33557.0,33556.0,0.00696256]
[1625278986158,5.41232,33557.0,33556.0,0.00696256]
[1625278986261,5.47132,33557.0,33556.0,0.00696256]
[1625278986511,8.16660706,33557.0,33556.0,0.00696256]
[1625278986812,8.64775794,33557.0,33556.0,0.00696256]
[1625278987063,3.50495794,33557.0,33556.0,0.00696256]
[1625278987161,3.44595794,33557.0,33556.0,0.00696256]
[1625278987263,3.50495794,33557.0,33556.0,0.00696256]
[1625278987364,5.08778696,33557.0,33556.0,0.00696256]
[1625278988013,5.02878696,33557.0,33556.0,0.00696256]
[1625278988165,5.08778696,33557.0,33556.0,0.00696256]
[1625278990871,5.02878696,33557.0,33556.0,0.00696256]
[1625278990972,4.96978696,33557.0,33556.0,0.00696256]
[1625278991223,4.96978696,33557.0,33556.0,0.06596256]
[1625278991877,4.96978696,33557.0,33556.0,0.00696256]
[1625278993182,5.02878696,33557.0,33556.0,0.00696256]
[1625278997144,4.96978696,33557.0,33556.0,0.00696256]
[1625278998597,8.64148696,33557.0,33556.0,0.00696256]
[1625278998696,4.96978696,33557.0,33556.0,0.00696256]
[1625279000802,0.75067088,33557.0,33556.0,0.00696256]
[1625279001052,4.97331587,33557.0,33556.0,0.00696256]
[1625279006767,5.03231587,33557.0,33556.0,0.00696256]
[1625279008919,4.91631587,33557.0,33556.0,0.00696256]
[1625279011122,4.97331587,33557.0,33556.0,0.00696256]
[1625279011373,4.91631587,33557.0,33556.0,0.00696256]
[1625279012324,4.97331587,33557.0,33556.0,0.00696256]
[1625279012880,5.03231587,33557.0,33556.0,0.00696256]
[1625279021155,5.09131587,33557.0,33556.0,0.00696256]
[1625279021853,6.84989745,33557.0,33556.0,0.00696256]
[1625279022203,6.86032169,33557.0,33556.0,0.00696256]
[1625279022704,6.86032169,33557.0,33553.0,0.00696477]
[1625279023056,0.24057544,33554.0,33553.0,0.00696477]
[1625279023157,0.41557544,33554.0,33553.0,0.00696477]
[1625279023507,0.41557544,33554.0,33549.0,0.00696516]
[1625279023508,6.39549415,33554.0,33549.0,0.00696516]
[1625279023807,6.39549415,33554.0,33553.0,0.00696529]
[1625279024057,6.39549415,33554.0,33549.0,0.00696535]
[1625279024160,4.48433811,33550.0,33549.0,0.00696535]
[1625279024258,4.60033811,33550.0,33549.0,0.00696535]
[1625279024360,4.60033811,33550.0,33548.0,0.24057544]
[1625279024560,4.60033811,33550.0,33549.0,0.00696535]
[1625279025060,8.93078899,33550.0,33549.0,0.00696535]
[1625279025159,8.98978899,33550.0,33549.0,0.00696535]
[1625279027767,8.98978899,33550.0,33545.0,0.00696595]
[1625279028019,8.98978899,33550.0,33544.0,0.00696598]
[1625279028971,2.63783744,33545.0,33544.0,0.00696598]
[1625279029118,2.99441288,33545.0,33544.0,0.00696598]
[1625279029571,4.57779311,33545.0,33544.0,0.00696598]
[1625279029969,9.09279311,33545.0,33544.0,0.00696598]
[1625279030371,9.03579311,33545.0,33544.0,0.00696598]
[1625279030675,7.45241288,33545.0,33544.0,0.00696598]
[1625279031124,2.93741288,33545.0,33544.0,0.00696598]
[1625279031528,2.87841288,33545.0,33544.0,0.00696598]
[1625279031727,4.46180331,33545.0,33544.0,0.06596598]
[1625279032182,2.87841288,33545.0,33544.0,0.67921393]
[1625279032478,2.87841288,33545.0,33544.0,0.59160708]
[1625279033081,2.87841288,33545.0,33544.0,0.5913118]
[1625279033582,1.47157797,33545.0,33544.0,2.34166613]
[1625279034132,1.47157797,33545.0,33544.0,2.57198613]
[1625279034535,0.24057544,33545.0,33544.0,3.79633135]
[1625279034633,0.24057544,33545.0,33544.0,3.85533135]
[1625279035183,0.24057544,33545.0,33544.0,3.86995373]
[1625279035332,0.24057544,33545.0,33544.0,5.26871846]
[1625279039340,0.24057544,33545.0,33544.0,5.26175248]
[1625279039440,0.24057544,33545.0,33544.0,5.26871719]
[1625279043304,1.47188795,33548.0,33544.0,5.26871719]
[1625279043505,1.47188795,33548.0,33547.0,2.2647819]
[1625279043602,1.47188795,33548.0,33547.0,2.3827819]
[1625279043903,1.47188795,33548.0,33547.0,3.6092907]
[1625279044707,1.47188795,33548.0,33547.0,3.62391118]
[1625279045007,1.47188795,33548.0,33547.0,8.18241118]
[1625279045111,0.24057544,33548.0,33547.0,8.18241118]
[1625279045256,0.24057544,33548.0,33547.0,8.42298662]
[1625279045506,1.23245012,33549.0,33547.0,8.42298662]
[1625279045808,1.2324328,33551.0,33548.0,0.0215837]
[1625279046007,1.2324328,33551.0,33548.0,0.1395837]
[1625279046360,1.23231294,33553.0,33550.0,4.87188069]
[1625279046506,1.23231294,33553.0,33550.0,4.98988069]
[1625279046606,1.23231294,33553.0,33551.0,0.00697064]
[1625279046757,1.23231294,33553.0,33551.0,0.43724064]
[1625279046857,1.2323389,33554.0,33552.0,3.48019405]
[1625279047106,1.2323389,33554.0,33552.0,3.5461644]
[1625279047206,1.2323389,33554.0,33553.0,0.24057544]
[1625279047306,1.2323389,33554.0,33553.0,0.29957544]
[1625279047408,1.2323389,33554.0,33553.0,3.78431324]
[1625279049010,1.2323389,33554.0,33553.0,2.56709463]
[1625279055025,1.2323389,33554.0,33553.0,2.62609463]
[1625279055274,1.2323389,33554.0,33553.0,2.86667007]
[1625279055426,1.58388286,33559.0,33553.0,5.47347655]
[1625279055427,1.23145498,33559.0,33553.0,5.47347655]
[1625279055628,1.23145498,33559.0,33554.0,0.0069618]
[1625279055725,1.23145498,33559.0,33554.0,0.1249618]
[1625279055876,1.23138585,33560.0,33558.0,3.72340066]
[1625279055975,1.23138585,33560.0,33558.0,3.84140066]
[1625279056176,1.23138585,33560.0,33559.0,0.00696163]
[1625279056275,1.23138585,33560.0,33559.0,0.12496163]
[1625279056425,1.40727298,33562.0,33559.0,0.12496163]
[1625279056426,1.23137065,33561.0,33559.0,2.38443592]
[1625279056677,1.23137065,33561.0,33560.0,0.00696161]
[1625279056877,1.23137065,33561.0,33560.0,0.12496161]
[1625279056980,1.23137065,33561.0,33560.0,2.38389036]
[1625279057179,1.23137065,33561.0,33560.0,2.86504124]
[1625279057278,1.23137065,33561.0,33560.0,3.17284124]
[1625279057578,1.23075215,33562.0,33560.0,3.17284124]
[1625279058029,1.23075215,33562.0,33561.0,0.00696148]
[1625279058132,1.23075215,33562.0,33561.0,0.06596148]
[1625279058230,1.23075215,33562.0,33561.0,0.12496148]
[1625279058331,1.23075215,33562.0,33561.0,1.33971568]
[1625279059180,1.23008325,33564.0,33561.0,1.33971568]
[1625279059581,1.23008325,33564.0,33562.0,0.00696122]
[1625279059681,1.23008325,33564.0,33563.0,0.5199376]
[1625279059781,1.23008325,33564.0,33563.0,0.5789376]
[1625279059982,1.23008325,33564.0,33563.0,0.6379376]
[1625279060133,1.23008325,33564.0,33563.0,0.99134186]
[1625279060538,1.22986673,33565.0,33563.0,0.64471679]
[1625279060885,1.22986673,33565.0,33564.0,0.00696054]
[1625279061036,1.22986673,33565.0,33564.0,0.06596054]
[1625279061137,1.22906576,33568.0,33564.0,1.33613076]
[1625279061238,1.22906576,33568.0,33567.0,0.72172632]
[1625279061336,1.22906576,33568.0,33567.0,1.05673632]
[1625279061737,1.22906576,33568.0,33567.0,1.0636966]
[1625279062138,1.40457435,33571.0,33567.0,1.40958166]
[1625279062239,1.40457435,33571.0,33567.0,1.58252419]
[1625279062489,1.40457435,33571.0,33568.0,0.0069597]
[1625279062589,1.40457435,33571.0,33568.0,0.0659597]
[1625279062689,1.40457435,33571.0,33568.0,0.21141374]
[1625279062990,1.40349827,33572.0,33569.0,0.00695975]
[1625279063089,1.40349827,33572.0,33569.0,0.12495975]
[1625279063290,1.46049827,33572.0,33571.0,0.24057544]
[1625279063392,1.46049827,33572.0,33571.0,0.35857544]
[1625279063592,1.46049827,33572.0,33571.0,0.36553536]
[1625279063844,1.46049827,33572.0,33571.0,4.19803536]
[1625279064546,1.46049827,33572.0,33571.0,0.36553536]
[1625279065949,1.46049827,33572.0,33571.0,0.58845536]
[1625279066248,1.40349827,33572.0,33571.0,0.58845536]
[1625279067049,0.24057544,33573.0,33571.0,0.58845536]
[1625279067050,1.64265059,33573.0,33571.0,0.58845536]
[1625279067451,1.64265059,33573.0,33572.0,0.00696286]
[1625279067551,1.64265059,33573.0,33572.0,0.12496286]
[1625279068352,0.24057544,33573.0,33572.0,0.12496286]
[1625279070106,0.24057544,33573.0,33572.0,0.41575286]
[1625279071559,0.24057544,33573.0,33572.0,0.12496286]
[1625279076521,0.29757544,33573.0,33572.0,0.12496286]
[1625279078976,0.29757544,33573.0,33572.0,0.06596286]
[1625279079077,0.29757544,33573.0,33572.0,0.12496286]
[1625279080028,0.24057544,33573.0,33572.0,0.12496286]
[1625279081330,0.29757544,33573.0,33572.0,0.12496286]
[1625279083834,0.24057544,33573.0,33572.0,0.12496286]
[1625279085089,0.24057544,33573.0,33572.0,0.06596286]
[1625279085189,0.24057544,33573.0,33572.0,0.12496286]
[1625279086591,0.29757544,33573.0,33572.0,0.12496286]
[1625279089345,0.29757544,33573.0,33572.0,0.3655383]
[1625279090449,1.52327748,33573.0,33572.0,0.3655383]
[1625279090598,1.76076748,33573.0,33572.0,0.3655383]
[1625279090849,0.53506544,33573.0,33572.0,0.3655383]
[1625279091703,0.53506544,33573.0,33572.0,0.3065383]
[1625279091802,0.53506544,33573.0,33572.0,0.3655383]
[1625279092704,0.29757544,33573.0,33572.0,0.3655383]
[1625279093958,1.22567475,33574.0,33572.0,0.57300107]
[1625279094265,1.22567475,33574.0,33573.0,0.0216961]
[1625279094359,1.22567475,33574.0,33573.0,0.0806961]
[1625279094461,1.22567475,33574.0,33573.0,0.1396961]
[1625279095362,0.057,33581.0,33573.0,2.38429146]
[1625279095460,0.057,33581.0,33580.0,0.67412088]
[1625279095560,0.057,33581.0,33580.0,0.79212088]
[1625279095861,0.057,33581.0,33580.0,0.79909609]
[1625279100823,0.057,33581.0,33580.0,0.54712609]
[1625279101325,3.8813,33581.0,33580.0,0.48812609]
[1625279102227,3.9403,33581.0,33580.0,0.48812609]
[1625279102476,3.9993,33581.0,33580.0,0.48812609]
[1625279103041,5.40120272,33581.0,33580.0,0.48812609]
[1625279103132,6.97832138,33581.0,33572.0,0.24057544]
[1625279103428,0.48115088,33573.0,33572.0,0.24057544]
[1625279103529,0.80575088,33573.0,33572.0,0.24057544]
[1625279103730,0.80575088,33573.0,33572.0,0.30653975]
[1625279104580,0.80575088,33573.0,33572.0,0.06596431]
[1625279104829,0.80575088,33573.0,33572.0,0.00696431]
[1625279105383,5.80265088,33573.0,33572.0,0.00696431]
[1625279105532,5.80265088,33573.0,33572.0,0.06596431]
[1625279105633,5.80265088,33573.0,33572.0,0.00696431]
[1625279105782,0.80575088,33573.0,33572.0,0.00696431]
[1625279106133,0.80575088,33573.0,33569.0,0.00696424]
[1625279106234,0.80575088,33573.0,33569.0,0.12496424]
[1625279106436,0.80575088,33573.0,33569.0,0.21171545]
[1625279106687,0.80575088,33573.0,33570.0,0.00696591]
[1625279106787,0.80575088,33573.0,33570.0,0.12496591]
[1625279107138,0.80575088,33573.0,33571.0,0.00696499]
[1625279107241,0.48115088,33573.0,33571.0,0.06596499]
[1625279107341,0.48115088,33573.0,33571.0,0.12496499]
[1625279107443,0.48115088,33573.0,33572.0,0.24057544]
[1625279107539,0.48115088,33573.0,33572.0,0.67073544]
[1625279107690,0.53815088,33573.0,33572.0,0.6776996]
[1625279107942,0.53815088,33573.0,33572.0,1.89048621]
[1625279108141,0.48115088,33573.0,33572.0,1.89048621]
[1625279108443,0.48115088,33573.0,33572.0,2.93049046]
[1625279109092,0.48115088,33573.0,33572.0,2.9450807]
[1625279109242,0.48115088,33573.0,33572.0,4.15713429]
[1625279109542,0.48115088,33573.0,33572.0,4.14254405]
[1625279110393,0.48115088,33573.0,33572.0,4.15713362]
[1625279110844,0.48115088,33573.0,33572.0,5.54212271]
[1625279111498,0.48115088,33573.0,33572.0,5.78269815]
[1625279114102,0.48115088,33573.0,33572.0,5.76810858]
[1625279115056,0.48115088,33573.0,33572.0,4.38311949]
[1625279115556,0.48115088,33573.0,33572.0,5.76866431]
[1625279118459,0.48115088,33573.0,33572.0,5.76170015]
[1625279118560,0.48115088,33573.0,33572.0,5.7686618]
[1625279119914,0.48115088,33573.0,33572.0,4.38311698]
[1625279120115,0.53815088,33573.0,33572.0,4.38311698]
[1625279120264,0.78184088,33573.0,33572.0,3.5308061]
[1625279120416,0.78184088,33573.0,33572.0,3.5898061]
[1625279120665,0.78184088,33573.0,33572.0,3.4718061]
[1625279120766,4.89884088,33573.0,33572.0,3.4718061]
[1625279120969,4.89884088,33573.0,33572.0,3.5308061]
[1625279121068,4.89884088,33573.0,33572.0,0.93287112]
[1625279121468,6.30497184,33573.0,33572.0,0.32600828]
[1625279121574,6.30497184,33573.0,33572.0,0.26700828]
[1625279122024,2.18797184,33573.0,33572.0,0.09364386]
[1625279122124,2.18797184,33573.0,33572.0,0.15264386]
[1625279122375,2.18797184,33573.0,33572.0,0.32583209]
[1625279122525,2.18797184,33573.0,33572.0,0.26683209]
[1625279123427,2.18797184,33573.0,33572.0,0.09364386]
[1625279123978,2.18797184,33573.0,33572.0,0.00696165]
[1625279124279,2.18797184,33573.0,33571.0,0.00696337]
[1625279124379,2.18797184,33573.0,33571.0,0.06596337]
[1625279124780,2.18797184,33573.0,33572.0,0.00696339]
[1625279125331,2.18797184,33573.0,33572.0,0.059]
[1625279125681,2.18797184,33573.0,33572.0,0.06596331]
[1625279126231,2.18797184,33573.0,33572.0,0.00696331]
[1625279127234,2.18797184,33573.0,33571.0,0.00696304]
[1625279127433,2.18797184,33573.0,33572.0,0.00696308]
[1625279127736,2.18797184,33573.0,33571.0,0.00696308]
[1625279127935,2.18797184,33573.0,33572.0,0.0069617]
[1625279128236,0.78184088,33573.0,33572.0,0.0069617]
[1625279128435,0.78184088,33573.0,33571.0,0.0069617]
[1625279128636,2.18833411,33573.0,33572.0,0.00696172]
[1625279128936,2.18833411,33573.0,33571.0,0.00696172]
[1625279129637,1.40648657,33572.0,33571.0,0.00696172]
[1625279129787,1.46348657,33572.0,33571.0,0.00696172]
[1625279130490,3.04584506,33572.0,33571.0,0.00696172]
[1625279130787,3.04584506,33572.0,33569.0,0.00696251]
[1625279131037,3.04584506,33572.0,33571.0,0.00696258]
[1625279131339,3.04584506,33572.0,33568.0,0.00696264]
[1625279131589,0.24057544,33569.0,33568.0,0.00696264]
[1625279131692,0.29757544,33569.0,33568.0,0.00696264]
[1625279132192,1.703988,33569.0,33568.0,0.00696264]
[1625279132741,1.703988,33569.0,33566.0,0.0069627]
[1625279132843,1.703988,33569.0,33566.0,0.0659627]
[1625279132940,1.703988,33569.0,33566.0,0.0069627]
[1625279133040,1.703988,33569.0,33566.0,0.0659627]
[1625279133292,1.703988,33569.0,33567.0,0.00696274]
[1625279133390,1.703988,33569.0,33567.0,0.06596274]
[1625279133490,0.29757544,33569.0,33567.0,0.06596274]
[1625279133641,0.24057544,33568.0,33567.0,0.06596274]
[1625279133740,0.29757544,33568.0,33567.0,0.06596274]
[1625279133841,1.70378821,33568.0,33567.0,0.059]
[1625279134141,1.70378821,33568.0,33567.0,0.06596268]
[1625279138253,0.29757544,33568.0,33567.0,0.06596268]
[1625279138652,0.24057544,33568.0,33567.0,0.06596268]
[1625279138852,0.24057544,33568.0,33567.0,0.92996042]
[1625279139754,0.24057544,33568.0,33567.0,1.27535954]
[1625279140254,0.24057544,33568.0,33567.0,2.31169475]
[1625279140806,0.24057544,33568.0,33567.0,3.52040988]
[1625279141256,0.24057544,33568.0,33567.0,2.31169475]
[1625279144459,0.29757544,33568.0,33567.0,2.31169475]
[1625279144859,0.24057544,33568.0,33567.0,2.31169475]
[1625279145562,0.24057544,33568.0,33567.0,3.52007999]
[1625279146664,0.24057544,33568.0,33567.0,3.57907999]
[1625279146863,0.24057544,33568.0,33567.0,3.59363625]
[1625279147621,0.24057544,33568.0,33567.0,4.97364075]
[1625279148918,0.24057544,33568.0,33567.0,4.96667807]
[1625279149019,0.24057544,33568.0,33567.0,4.97363485]
[1625279149270,0.24057544,33568.0,33567.0,6.52430844]
[1625279149720,0.24057544,33568.0,33567.0,6.76488388]
[1625279152678,0.24057544,33573.0,33567.0,6.76488388]
[1625279152978,0.24057544,33573.0,33568.0,0.02151048]
[1625279153080,0.24057544,33573.0,33572.0,3.44553843]
[1625279153177,0.24057544,33573.0,33572.0,3.76221843]
[1625279153277,0.24057544,33573.0,33572.0,3.82121843]
[1625279153679,0.24057544,33573.0,33572.0,3.82817482]
[1625279153780,0.24057544,33573.0,33572.0,4.06875026]
[1625279163347,0.24057544,33573.0,33572.0,3.81107026]
[1625279167307,0.24057544,33573.0,33572.0,3.82598929]
[1625279169409,0.24057544,33573.0,33572.0,4.08543929]
[1625279171813,0.24057544,33573.0,33572.0,3.82598929]
[1625279172014,0.53258544,33573.0,33572.0,3.82598929]
[1625279172124,0.53258544,33573.0,33572.0,3.52641385]
[1625279172266,0.59158544,33573.0,33572.0,3.52641385]
[1625279172366,0.59158544,33573.0,33572.0,3.51149482]
[1625279172466,1.99805996,33573.0,33572.0,0.06595639]
[1625279172614,1.93905996,33573.0,33572.0,0.06595639]
[1625279172916,1.93905996,33573.0,33572.0,0.15248358]
[1625279173467,1.93905996,33573.0,33572.0,0.06595639]
[1625279173866,2.1796354,33573.0,33572.0,0.06595639]
[1625279174368,2.1796354,33573.0,33572.0,4.27152623]
[1625279174469,2.1226354,33573.0,33572.0,0.78545623]
[1625279174922,0.71616088,33573.0,33572.0,1.47700828]
[1625279175019,0.48115088,33573.0,33572.0,1.47700828]
[1625279175420,0.48115088,33573.0,33572.0,1.49191466]
[1625279175521,0.48115088,33573.0,33572.0,2.5291277]
[1625279176123,0.53815088,33573.0,33572.0,2.5291277]
[1625279176473,0.53815088,33573.0,33572.0,2.51422132]
[1625279176574,0.48115088,33573.0,33572.0,2.51422132]
[1625279176777,0.48115088,33573.0,33572.0,2.58812733]
[1625279177078,0.48115088,33573.0,33572.0,3.79704207]
[1625279177279,0.24057544,33573.0,33572.0,3.79704207]
[1625279177528,0.24057544,33573.0,33572.0,7.72884207]
[1625279177630,0.24057544,33573.0,33572.0,9.10974608]
[1625279177880,0.24057544,33573.0,33572.0,9.35032152]
[1625279178230,0.24057544,33573.0,33572.0,5.41852152]
[1625279180838,0.24057544,33573.0,33572.0,4.03761751]
[1625279183992,0.24057544,33573.0,33572.0,8.63471751]
[1625279184189,0.24057544,33573.0,33572.0,10.01648903]
[1625279184490,0.24057544,33573.0,33572.0,5.41938903]
[1625279186995,0.24057544,33573.0,33572.0,9.86988903]
[1625279187896,0.24057544,33573.0,33572.0,5.41938903]
[1625279188846,0.24057544,33573.0,33572.0,10.00628903]
[1625279190800,0.24057544,33573.0,33572.0,5.41938903]
[1625279191051,0.24057544,33573.0,33572.0,6.97330892]
[1625279191349,0.24057544,33573.0,33572.0,10.60720892]
[1625279192201,0.24057544,33573.0,33572.0,9.05328903]
[1625279192906,0.24057544,33573.0,33572.0,5.41938903]
[1625279196060,0.24057544,33573.0,33572.0,6.97542391]
[1625279196360,0.24057544,33573.0,33572.0,10.62142391]
[1625279197967,0.24057544,33573.0,33572.0,6.97542391]
[1625279200171,0.24057544,33573.0,33572.0,11.76592391]
[1625279200873,0.18157544,33573.0,33572.0,6.97542391]
[1625279202429,0.18157544,33573.0,33572.0,11.63712391]
[1625279202579,0.18157544,33573.0,33572.0,6.97542391]
[1625279204431,0.53815088,33579.0,33572.0,10.66312391]
[1625279204986,0.53815088,33579.0,33573.0,0.08092401]
[1625279205088,0.53815088,33579.0,33578.0,4.84564173]
[1625279205187,0.53815088,33579.0,33578.0,4.96364173]
[1625279205487,0.53815088,33579.0,33578.0,4.98556554]
[1625279206087,0.29757544,33579.0,33578.0,5.22614098]
[1625279219814,0.29757544,33579.0,33578.0,0.38049925]
[1625279220366,0.29757544,33579.0,33578.0,5.20231869]
[1625279221217,0.29757544,33579.0,33578.0,9.76551869]
[1625279221869,0.29757544,33579.0,33578.0,5.20231869]
[1625279228632,0.24057544,33579.0,33578.0,5.20231869]
[1625279228736,0.901,33582.0,33578.0,5.20231869]
[1625279228838,1.40668684,33586.0,33578.0,5.20231869]
[1625279228985,1.40668684,33586.0,33578.0,5.24295302]
[1625279229238,1.34768684,33586.0,33579.0,0.31376666]
[1625279229334,1.34768684,33586.0,33579.0,0.43176666]
[1625279229790,1.34768684,33586.0,33580.0,0.02191007]
[1625279229892,0.9218,33595.0,33585.0,8.94253285]
[1625279230040,0.9218,33595.0,33585.0,9.06053285]
[1625279230143,0.9218,33595.0,33594.0,0.48115088]
[1625279230240,0.54757544,33596.0,33594.0,0.76821088]
[1625279230340,0.54757544,33596.0,33594.0,0.88621088]
[1625279230540,0.54757544,33596.0,33595.0,0.00701373]
[1625279230743,0.54757544,33596.0,33595.0,0.12501373]
[1625279230992,0.54757544,33596.0,33595.0,4.72631373]
[1625279231392,0.54757544,33596.0,33595.0,5.92250136]
[1625279231996,0.54757544,33596.0,33595.0,1.32120136]
[1625279232549,0.54757544,33596.0,33595.0,0.66376213]
[1625279232998,0.54757544,33596.0,33595.0,0.5783695]
[1625279233096,0.60657544,33596.0,33595.0,0.00701373]
[1625279235654,2.18639459,33596.0,33595.0,0.00701373]
[1625279235755,2.43040459,33596.0,33595.0,0.00701373]
[1625279239505,2.18639459,33596.0,33595.0,0.00701373]
[1625279240008,0.60657544,33596.0,33595.0,0.06601373]
[1625279242160,0.60657544,33596.0,33595.0,0.34150373]
[1625279242710,0.54757544,33596.0,33595.0,0.34150373]
[1625279243513,0.49057544,33596.0,33595.0,0.34150373]